[Event "CIS Master Groups 2024"]
[Site "Vasto"]
[Date "2024.04.11"]
[Round "6.15"]
[White "Piscopo, Pierluigi"]
[Black "Bettalli, Francesco"]
[Result "0-1"]
[ECO "B30"]
[WhiteElo "2312"]
[BlackElo "2309"]
[Annotator "TA"]
[PlyCount "122"]
[EventDate "2024.04.07"]
[EventType "team-tourn"]
[EventCountry "ITA"]
[SourceTitle "playchess.com"]
[Source "ChessBase"]
[SourceQuality "1"]
[TimeControl "40/5400+30:900+30"]

{[%evp 9,122,23,16,18,20,25,20,20,19,0,5,0,6,5,12,0,22,0,12,3,25,0,0,0,0,0,25,13,8,4,0,0,114,0,10,8,32,8,29,0,49,37,43,14,3,0,0,0,0,-7,-3,0,0,0,0,-6,-1,-29,0,-88,-6,-85,-82,-180,-168,-320,-310,-313,-297,-293,-310,-314,-314,-286,-271,-309,-298,-321,-323,-342,-331,-317,-297,-625,-376,-361,-411,-397,-414,-570,-571,-488,-483,-415,-211,-167,0,-392,-260,-584,-567,-528,-509,-637,-631,-1236,-1231,-29976,-29977,-29996,-29997,-29997,-29998,-29998,-29999]} 1. e4 {[%emt 0:00:04]} c5 {[%emt 0:00:15]} 2. Nf3 {[%emt 0:00:06]} Nc6 {[%emt 0:00:17]} 3. Bb5 {[%emt 0:00:24]} e5 {[%emt 0:00:31]} 4. O-O {[%emt 0:01:14]} Bd6 {[%emt 0:00:07]} 5. a3 {[%emt 0:06:28]} a6 {[%emt 0:01:18]} 6. Bc4 {[%emt 0:02:01]} Nf6 {[%emt 0:01:00]} 7. d3 {[%emt 0:00:12]} Be7 {[%emt 0:00:59]} 8. Nc3 {[%emt 0:13:01] The position is equal.} d6 {[%emt 0:02:44]} 9. Ng5 {[%emt 0:01:20]} O-O {[%emt 0:00:34]} 10. f4 {[%emt 0:00:05]} exf4 {[%emt 0:11:12]} 11. Bxf4 {[%emt 0:05:29]} Nd4 {[%emt 0:02:43]} 12. Qd2 {[%emt 0:18:09]} Ne6 {[%emt 0:06:23]} 13. Rae1 {[%emt 0:19:46]} Nxg5 {[%emt 0:07:42]} 14. Bxg5 {[%emt 0:00:05]} Be6 {[%emt 0:00:46]} 15. Bxe6 {[%emt 0:09:27]} fxe6 {[%emt 0:00:03]} 16. Qe2 {[%emt 0:01:40]} Nd7 {[%emt 0:03:06]} 17. Bf4 {[%emt 0:00:13]} Qe8 {[%emt 0:09:09]} 18. Nb1 {[%emt 0:06:11]} Qg6 {[%emt 0:03:22]} 19. Nd2 {[%emt 0:00:05]} b5 {[%emt 0:00:55]} 20. Rf3 {[%emt 0:01:03]} Qh5 {[%emt 0:02:04]} (20... Rf7 $11 {remains equal.}) 21. Bg3 {[%emt 0:00:34]} (21. Bxd6 $1 $16 {And now Rxf8+ would win.} Rxf3 22. Bxe7) 21... Rxf3 {[%emt 0:00:50]} 22. Nxf3 {[%emt 0:00:05]} Nb8 {[%emt 0:13:41]} 23. c3 {[%emt 0:03:44]} Nc6 {[%emt 0:01:17]} 24. d4 {[%emt 0:06:23][%cal Oa3a4]} cxd4 {[%emt 0:02:17]} (24... Na5 $11) 25. cxd4 $14 {[%emt 0:00:05]} Bf6 {[%emt 0:00:57]} 26. e5 {[%emt 0:01:45]} (26. Bxd6 $2 Nxd4 27. Nxd4 Bxd4+ 28. Kh1 Qxe2 29. Rxe2 Rd8 $17) 26... dxe5 {[%emt 0:00:20]} 27. dxe5 {[%emt 0:00:02]} Be7 {[%emt 0:01:31]} 28. Rc1 {[%emt 0:02:22]} Qe8 {[%emt 0:00:51]} 29. Qe4 {[%emt 0:01:54]} Rc8 {[%emt 0:00:08][%cal Oc6e5]} 30. Bf4 {[%emt 0:00:47]} Na5 {[%emt 0:00:59]} 31. Rxc8 {[%emt 0:00:06]} Qxc8 {[%emt 0:05:53]} 32. h4 {[%emt 0:00:02]} Nc4 {[%emt 0:00:44]} 33. Qc2 {[%emt 0:01:07]} Qd8 {[%emt 0:02:43]} 34. h5 {[%emt 0:00:38]} (34. Kh2 $11 {keeps the balance.}) 34... Qe8 {[%emt 0:00:49]} (34... Qf8 $1 $17 {[%cal Rf8f4]} 35. Bg3 Qf5) 35. h6 {[%emt 0:00:39] [#]} (35. b3 $11 Qxh5 (35... Nxa3 36. Qc7 $11) 36. Kf2 (36. bxc4 $2 Bc5+ $19) 36... Nxa3 37. Qc8+ Kf7 38. Qd7) 35... Qh5 $1 $17 {[%emt 0:00:06] Strongly threatening ...Bc5+.} 36. Nh2 {[%emt 0:00:34]} (36. b4 $17) 36... gxh6 $19 {[%emt 0:08:14][%cal Oc4b2]} 37. g3 $2 {[%emt 0:00:31]} (37. a4 {was necessary.}) 37... Qg6 {[%emt 0:00:33]} (37... Nxe5 38. Qe4 Bf6 39. b3 $19 (39. g4 $2 Qg6 $19)) 38. Qc1 {[%emt 0:00:24]} Qe4 {[%emt 0:00:32] aiming for ...Bc5+.} 39. Ng4 {[%emt 0:00:11]} Qe2 {[%emt 0:05:07]} 40. Nf6+ {[%emt 0:00:06]} Bxf6 {[%emt 0:00:51]} 41. exf6 {[%emt 0:15:06]} Qxb2 {[%emt 0:15:39][%mdl 4096] Endgame. KQB-KQN} 42. Qd1 {[%emt 0:00:00] Threatening mate with Qg4+.} Qxf6 {[%emt 0:00:00]} (42... Qxa3 43. Qg4+ (43. Bxh6 $2 Qxg3+ 44. Kh1 Qh3+ 45. Kg1 Qxh6 $19) 43... Kf7 44. Qg7+ (44. Bxh6 $2 Qa1+ 45. Kg2 Qb2+ 46. Kg1 Qb1+ 47. Kg2 Qc2+ 48. Kg1 Qg6 $19) 44... Ke8 45. f7+ (45. Bxh6 Qc5+ 46. Kf1 Qf5+ 47. Kg1 Qc5+ 48. Kf1 Qf5+ 49. Kg1 Qc5+ $11) 45... Kd7 46. f8=Q+ (46. f8=B+ Kc6 $18) 46... Kc6 47. Qc8+ (47. Bxh6 Qxf8 48. Qxf8 e5 $18) 47... Kd5 48. Qgd7+ (48. Bxh6 Qc5+ 49. Qxc5+ Kxc5 $18) (48. Bxh6 Qc5+ 49. Qxc5+ Kxc5 $18)) 43. Qd7 {[%emt 0:00:00]} e5 {[%emt 0:00:00]} (43... Nxa3 44. Qe8+ Kg7 45. Qd7+ Kf8 46. Bd6+ Kg8 47. Qc8+ Kf7 48. Bxa3 $11) 44. Qe8+ {[%emt 0:00:00]} Kg7 {[%emt 0:00:00]} 45. Qd7+ {[%emt 0:00:00]} Qf7 {[%emt 0:00:00]} 46. Qg4+ {[%emt 0:00:00]} (46. Bxh6+ Kg6 47. Qh3) 46... Kf6 {[%emt 0:00:00]} 47. Bxh6 {[%emt 0:00:00]} Qg6 {[%emt 0:00:00] Repels Bg5+} (47... Nxa3 $2 {loses.} 48. Bg5+ Kg7 49. Bf4+ Qg6 50. Bxe5+ Kg8 51. Qc8+ Kf7 52. Qd7+ Kg8 53. Qd5+ Qf7 54. Qd8+ Qf8 55. Qg5+ Kf7 56. Qf6+ Kg8 57. Qe6+ (57. Qxa6 Qc5+ 58. Kg2 Qxe5 $15) 57... Qf7 58. Qg4+ (58. Qxa6 Qf5 $11) 58... Qg6 59. Qc8+ Kf7 60. Qd7+ Kg8 61. Qd5+ Kf8 62. Qf3+ Ke8 63. Qxa3 $16) 48. Qf3+ {[%emt 0:00:00]} Ke6 {[%emt 0:00:00]} 49. Bf8 {[%emt 0:00:00]} e4 {[%emt 0:00:00]} 50. Qf4 {[%emt 0:00:00]} Ne5 {[%emt 0:00:00]} 51. Bb4 {[%emt 0:00:00]} Qg4 {[%emt 0:00:48]} (51... Kd5 $142 52. Kg2 Nd3) 52. Qh6+ {[%emt 0:00:00] [#]} Qg6 $2 {[%emt 0:00:36]} (52... Ng6 $1 $19 53. Be1 Qd1) 53. Qe3 {[%emt 0:00:00][%mdl 8192]} (53. Qf4 $11 {and White is okay.} Qg5 54. Qxe4) 53... h5 {[%emt 0:01:22]} 54. Qb6+ $2 {[%emt 0:00:00]} (54. Kg2) 54... Kf5 {[%emt 0:00:04]} 55. Qf2+ {[%emt 0:00:00]} Nf3+ {[%emt 0:00:12]} 56. Kf1 {[%emt 0:00:00]} Kg4 {[%emt 0:00:56]} 57. Qc2 {[%emt 0:00:00]} Qf5 {[%emt 0:00:17] White must now prevent ...Nd4+.} (57... Kxg3 $2 {is the wrong capture.} 58. Qg2+ Kf4 59. Qxg6 $18) 58. Kg2 {[%emt 0:00:00]} Nd4 {[%emt 0:01:02] Black mates.} 59. Qc7 {[%emt 0:00:00]} Qf3+ {[%emt 0:00:04]} 60. Kh2 {[%emt 0:00:04]} Qf2+ {[%emt 0:00:03]} 61. Kh1 {[%emt 0:00:03]} Qf1+ {[%emt 0:00:09] Weighted Error Value: White=0.61/Black=0.31.  Loses game:     	White=1     	---        Missed win:     	---       	Black=1      Mistake:       	White=7     	Black=4      Inaccurate:     	White=5     	Black=3      OK:         	White=12    	Black=20     Best:        	White=2     	Black=3      Strong:       	---       	Black=1} 0-1

[Event "CIS Master Groups 2024"]
[Site "Vasto"]
[Date "2024.04.11"]
[Round "6.16"]
[White "Pescatore, Lorenzo"]
[Black "Zawadzka, Jolanta"]
[Result "1/2-1/2"]
[ECO "B06"]
[WhiteElo "2358"]
[BlackElo "2351"]
[Annotator "TA"]
[PlyCount "159"]
[EventDate "2024.04.07"]
[EventType "team-tourn"]
[EventCountry "ITA"]
[SourceTitle "playchess.com"]
[Source "ChessBase"]
[SourceQuality "1"]
[TimeControl "40/5400+30:900+30"]

{[%evp 53,159,3,13,0,15,0,0,0,0,-16,-12,-39,-15,-57,-23,-16,-22,-18,-18,-14,37,37,142,104,105,115,78,78,105,18,24,8,33,23,18,33,22,27,31,19,20,29,31,13,141,20,75,69,87,88,101,60,70,0,0,0,80,34,34,34,34,34,34,0,8,8,33,33,33,33,33,33,34,34,34,34,34,33,33,16,33,0,0,0,0,0,0,0,42,42,42,0,0,0,0,0,0,0,0,0,0,0,0,0,0,0,0,0]} 1. e4 {[%emt 0:00:04]} c5 {[%emt 0:00:08]} 2. c3 {[%emt 0:00:07]} d5 {[%emt 0:00:05]} 3. exd5 {[%emt 0:00:06]} Qxd5 {[%emt 0:00:06]} 4. d4 {[%emt 0:00:11]} g6 {[%emt 0:00:08]} 5. Nf3 {[%emt 0:01:12]} Bg7 {[%emt 0:00:19]} 6. Na3 {[%emt 0:01:07]} cxd4 {[%emt 0:00:30]} 7. Bc4 {[%emt 0:02:22] B06: Modern Defence.} Qe4+ {[%emt 0:00:19]} 8. Be3 {[%emt 0:00:37]} Nh6 {[%emt 0:00:17]} 9. cxd4 {[%emt 0:07:28] 9.Nb5 injects fresh life into this line.} O-O {[%emt 0:03:54]} 10. Nb5 {[%emt 0:09:35]} Nc6 {[%emt 0:19:19]} 11. Nc3 {[%emt 0:08:17] 11.Qd2 is vanishing.} Qg4 {[%emt 0:03:45]} 12. h3 {[%emt 0:01:54]} Qh5 {[%emt 0:04:04]} 13. Qd2 {[%emt 0:21:27]} Ng4 {[%emt 0:10:15]} 14. O-O {[%emt 0:11:37]} Nxe3 {[%emt 0:00:47]} 15. Qxe3 $146 {[%emt 0:05:59]} ({Predecessor:} 15. fxe3 b6 16. a3 Bb7 17. b4 Rad8 18. Rad1 Kh8 19. Qf2 f5 20. b5 Na5 21. Ba2 {0-1 Griffith,K (2320)-Georgiadis,N (2479) Arlington DC op 3rd 2015 (5)}) 15... Bd7 {[%emt 0:08:29]} 16. Rfe1 {[%emt 0:06:11]} e6 {[%emt 0:08:41]} 17. Rad1 {[%emt 0:03:55]} Nb4 {[%emt 0:05:08]} 18. Bb3 {[%emt 0:01:46]} Rad8 {[%emt 0:19:38]} 19. a3 {[%emt 0:06:25]} Nd5 {[%emt 0:00:35]} 20. Nxd5 {[%emt 0:00:31]} exd5 {[%emt 0:00:04]} 21. Ne5 {[%emt 0:01:01]} Be6 {[%emt 0:01:18]} 22. g4 {[%emt 0:03:57]} Qh4 {[%emt 0:01:01]} 23. Kg2 {[%emt 0:00:12]} Rfe8 {[%emt 0:02:43]} 24. Qg3 {[%emt 0:00:27]} Qxg3+ {[%emt 0:01:34]} 25. Kxg3 {[%emt 0:00:02]} Rc8 {[%emt 0:02:13]} 26. Rc1 {[%emt 0:00:31]} Kf8 {[%emt 0:01:42]} 27. f4 {[%emt 0:00:29]} b6 {[%emt 0:04:00]} 28. Kf3 {[%emt 0:03:50]} Red8 {[%emt 0:02:01]} 29. Ke3 {[%emt 0:01:01]} f6 {[%emt 0:00:52]} 30. Nd3 {[%emt 0:00:14]} Ke7 {[%emt 0:00:14]} 31. Nb4 {[%emt 0:00:18]} Kd6 {[%emt 0:00:10]} 32. Nd3 {[%emt 0:01:35]} h5 {[%emt 0:00:18]} (32... Rxc1 {simplifies} 33. Rxc1 Re8 34. Kf3 Bd7) 33. Kf3 {[%emt 0:00:34]} (33. Rxc8 {simplifies} Bxc8 34. gxh5 gxh5 35. Rg1) 33... hxg4+ {[%emt 0:01:20]} 34. hxg4 {[%emt 0:00:02]} Rxc1 {[%emt 0:00:41]} 35. Rxc1 {[%emt 0:00:19]} Rh8 {[%emt 0:00:08]} 36. Kg3 {[%emt 0:00:30]} f5 {[%emt 0:00:17]} (36... Bd7 $11) 37. Ne5 $14 {[%emt 0:00:45]} Bxe5 {[%emt 0:00:57]} (37... Rc8 $14 38. Rxc8 Bxc8) 38. fxe5+ {[%emt 0:00:57]} Kd7 {[%emt 0:00:19]} 39. Ba4+ {[%emt 0:00:03]} Kd8 {[%emt 0:00:17]} 40. Rc6 {[%emt 0:00:19]} Bc8 {[%emt 0:00:26]} 41. Rxg6 {[%emt 0:06:47]} ({White should try} 41. Bd1 $16) 41... fxg4 $11 {[%emt 0:00:11]} 42. Kf4 {[%emt 0:08:05]} Rh2 {[%emt 0:03:21]} 43. Rg8+ {[%emt 0:01:05]} Kc7 {[%emt 0:00:06]} 44. Rg7+ {[%emt 0:00:19]} Kd8 {[%emt 0:00:06]} 45. e6 {[%emt 0:01:30]} (45. Rxa7 Rf2+ 46. Ke3 Rf3+ 47. Ke2 Rf4) 45... Bxe6 {[%emt 0:09:59]} 46. Ke5 {[%emt 0:00:04]} Rh6 {[%emt 0:00:05]} (46... Re2+ 47. Kd6 g3 48. Rxg3 $16 (48. Rxa7 g2 $11)) 47. Bc6 {[%emt 0:00:53]} Bc8 {[%emt 0:00:59]} 48. Bxd5 {[%emt 0:01:24]} Bd7 {[%emt 0:00:34]} (48... Rh5+ $11 49. Kd6 Rh6+ 50. Ke5 Rh5+ 51. Ke4 Rh2) 49. Bc4 {[%emt 0:01:18]} (49. Bf7 $1 $16) 49... Kc7 {[%emt 0:00:20]} (49... Rh5+ $11 50. Ke4 Rh2) 50. d5 $16 {[%emt 0:00:23]} Rh5+ {[%emt 0:00:18] [#]} 51. Kd4 $1 {[%emt 0:00:10]} Kd6 {[%emt 0:01:34]} 52. Rg6+ {[%emt 0:00:05]} Kc7 {[%emt 0:00:09]} 53. Rg7 {[%emt 0:00:48]} (53. b4 $5 Be8 54. Rg8 $16 (54. Rxg4 Kd6 $11)) 53... Kd6 $1 {[%emt 0:00:06]} 54. Rg6+ {[%emt 0:00:09]} Kc7 {[%emt 0:00:02] [#]} 55. d6+ {[%emt 0:01:20]} (55. b4 $1 $16 {d6+ is the strong threat.} Rh8 56. d6+ Kd8 57. Rg7 (57. Rg8+ $2 Rxg8 58. Bxg8 g3 $19)) 55... Kc6 $14 {[%emt 0:00:17]} 56. a4 {[%emt 0:00:05]} a6 $1 {[%emt 0:00:40]} 57. Bxa6 {[%emt 0:00:18]} Rd5+ {[%emt 0:00:13]} 58. Ke3 {[%emt 0:00:37]} Rxd6 {[%emt 0:01:38]} 59. Bb5+ {[%emt 0:00:04]} Kc5 {[%emt 0:01:15]} 60. b4+ {[%emt 0:00:53]} Kd5 $1 {[%emt 0:00:17]} 61. Rg5+ {[%emt 0:00:52]} Ke6 {[%emt 0:00:05]} 62. Bxd7+ {[%emt 0:00:36]} Kxd7 {[%emt 0:00:12]} 63. Rxg4 {[%emt 0:00:14]} Kc6 {[%emt 0:00:11]} 64. Rc4+ {[%emt 0:00:18]} Kb7 {[%emt 0:00:08]} 65. Rd4 {[%emt 0:00:06]} Rh6 {[%emt 0:00:49]} 66. Kd3 {[%emt 0:00:07]} Kc6 {[%emt 0:00:58]} 67. Kc4 {[%emt 0:00:20]} b5+ {[%emt 0:01:23]} 68. axb5+ {[%emt 0:00:04]} Kb6 {[%emt 0:00:02]} 69. Rd5 {[%emt 0:00:19]} Rh4+ {[%emt 0:00:05]} 70. Kb3 {[%emt 0:00:12]} Rh1 {[%emt 0:00:13]} 71. Rc5 {[%emt 0:00:38]} Rb1+ {[%emt 0:00:32]} 72. Kc3 {[%emt 0:00:05]} Rc1+ {[%emt 0:00:09]} 73. Kd4 {[%emt 0:00:10]} Rd1+ {[%emt 0:00:35]} 74. Kc4 {[%emt 0:00:04]} Rc1+ {[%emt 0:00:06]} 75. Kd5 {[%emt 0:00:05]} Rd1+ {[%emt 0:00:05]} 76. Ke5 {[%emt 0:00:17]} Rb1 {[%emt 0:00:14]} 77. Rc8 {[%emt 0:00:19]} Rxb4 {[%emt 0:00:17]} 78. Rb8+ {[%emt 0:00:09]} Kc7 {[%emt 0:00:07]} 79. Rh8 {[%emt 0:00:05]} Rxb5+ {[%emt 0:00:04]} 80. Ke4 {[%emt 0:06:16]} 1/2-1/2

[Event "CIS Master Groups 2024"]
[Site "Vasto"]
[Date "2024.04.11"]
[Round "6.17"]
[White "Milliet, Sophie"]
[Black "Socko, Monika"]
[Result "1/2-1/2"]
[ECO "B28"]
[WhiteElo "2392"]
[BlackElo "2428"]
[Annotator "TA"]
[PlyCount "92"]
[EventDate "2024.04.07"]
[EventType "team-tourn"]
[EventCountry "ITA"]
[SourceTitle "playchess.com"]
[Source "ChessBase"]
[SourceQuality "1"]
[TimeControl "40/5400+30:900+30"]

{[%evp 9,92,4,19,9,22,16,34,43,43,40,50,44,50,45,44,27,33,39,33,37,31,31,35,32,32,31,22,25,37,7,19,16,14,15,20,0,0,0,0,0,6,6,12,12,12,16,119,97,81,38,31,20,45,23,23,31,33,33,33,8,0,0,0,0,0,0,0,8,30,30,30,30,30,30,31,31,31,8,8,8,8,8,8,8,8]} 1. e4 {[%emt 0:00:03]} e6 {[%emt 0:00:11]} 2. d4 {[%emt 0:00:05]} d5 {[%emt 0:00:03]} 3. e5 {[%emt 0:00:06]} c5 {[%emt 0:00:03]} 4. c3 {[%emt 0:00:04]} Bd7 {[%emt 0:00:07]} 5. Nf3 {[%emt 0:00:14]} a6 {[%emt 0:00:07]} 6. Be3 {[%emt 0:01:31]} Qb6 {[%emt 0:05:56]} 7. Qb3 {[%emt 0:01:45]} Qxb3 {[%emt 0:04:18]} 8. axb3 {[%emt 0:00:04] White is slightly better.} cxd4 {[%emt 0:00:07]} 9. Nxd4 {[%emt 0:00:04]} Nc6 {[%emt 0:05:58]} 10. Nxc6 {[%emt 0:00:20]} Bxc6 {[%emt 0:00:16] Black is weak on the dark squares} 11. b4 {[%emt 0:00:38][%cal Ob4b5]} Rc8 {[%emt 0:04:43]} 12. Na3 {[%emt 0:14:59]} Ne7 {[%emt 0:07:41]} 13. b5 {[%emt 0:04:06]} axb5 {[%emt 0:00:04]} 14. Nxb5 {[%emt 0:00:10]} Nf5 {[%emt 0:02:31] Prevents Nd6+} 15. Bb6 {[%emt 0:02:30]} Be7 {[%emt 0:01:08]} 16. Bd3 {[%emt 0:05:10]} O-O {[%emt 0:04:05]} 17. Nd4 {[%emt 0:01:04]} Nxd4 {[%emt 0:03:32]} 18. Bxd4 {[%emt 0:00:29]} f6 {[%emt 0:06:33]} 19. O-O {[%emt 0:07:31]} fxe5 {[%emt 0:04:21]} 20. Bxe5 {[%emt 0:00:04]} Ra8 {[%emt 0:00:39]} 21. g3 {[%emt 0:08:45]} Bf6 {[%emt 0:04:29]} 22. Rxa8 {[%emt 0:19:30]} Rxa8 {[%emt 0:00:10]} 23. f4 {[%emt 0:00:18][%cal Bf2f4,Bf4f5,Bf5e6][%mdl 32]} Ra2 {[%emt 0:05:52]} 24. Rb1 {[%emt 0:04:03]} Be7 {[%emt 0:10:51]} 25. Bd4 {[%emt 0:00:20]} Be8 {[%emt 0:04:42]} 26. f5 {[%emt 0:08:21]} Bd7 {[%emt 0:06:55]} 27. Re1 {[%emt 0:07:30]} Rxb2 {[%emt 0:05:41]} (27... Kf7 $1 $11 {keeps the balance.}) 28. fxe6 $16 {[%emt 0:00:08]} Bc8 {[%emt 0:04:56]} 29. Bf5 {[%emt 0:00:26] White is more active.} Ra2 {[%emt 0:00:20] Against Ra1} 30. Bg4 {[%emt 0:09:44] And now Rf1 would win.} Ra6 {[%emt 0:00:29]} 31. Bf3 {[%emt 0:00:11]} Bxe6 {[%emt 0:02:17] [#]} (31... Rxe6 $2 {is the wrong capture.} 32. Bxd5 Kf7 33. Bxg7 $18 (33. Bxe6+ Bxe6 34. Bxg7 b5 $18)) 32. Rxe6 $1 {[%emt 0:01:11]} Rxe6 {[%emt 0:00:04]} 33. Bxd5 {[%emt 0:00:03] This pair of bishops is nice.} Kf7 {[%emt 0:00:03][%cal Oe7f6]} 34. Bxe6+ {[%emt 0:01:14]} (34. Bxg7 $5 Kxg7 35. Bxe6 $11) 34... Kxe6 {[%emt 0:00:03]} 35. Bxg7 $14 {[%emt 0:00:03][%mdl 4096] Endgame. KB-KB} Kd5 {[%emt 0:02:35]} 36. Kf2 {[%emt 0:00:12]} Ke4 {[%emt 0:00:17]} 37. Ke2 {[%emt 0:00:22]} b5 {[%emt 0:00:07]} 38. Bh6 {[%emt 0:02:31]} b4 {[%emt 0:00:30]} 39. cxb4 {[%emt 0:00:27]} Bxb4 {[%emt 0:00:01]} 40. Kf2 {[%emt 0:00:18]} Kf5 {[%emt 0:01:20]} 41. Kf3 {[%emt 0:16:12]} Kg6 {[%emt 0:15:05]} 42. Bf4 {[%emt 0:00:13]} h5 {[%emt 0:00:06]} 43. g4 {[%emt 0:01:45]} Bc5 {[%emt 0:00:18] The position is equal.} 44. h3 {[%emt 0:00:20]} hxg4+ {[%emt 0:00:04]} 45. Kxg4 {[%emt 0:00:28]} Be7 {[%emt 0:00:09]} 46. h4 {[%emt 0:00:06]} Bxh4 {[%emt 0:08:43] Weighted Error Value: White=0.07 (flawless) /Black=0.09 (flawless) .  Mistake:       	---       	Black=1      Inaccurate:     	White=2     	---        OK:         	White=10    	Black=16     Best:        	White=2     	Black=3} 1/2-1/2

[Event "CIS Master Groups 2024"]
[Site "Vasto"]
[Date "2024.04.11"]
[Round "6.18"]
[White "Zimina, Olga"]
[Black "Gueci, Tea"]
[Result "1-0"]
[ECO "D02"]
[WhiteElo "2299"]
[BlackElo "2205"]
[Annotator "TA"]
[PlyCount "87"]
[EventDate "2024.04.07"]
[EventType "team-tourn"]
[EventCountry "ITA"]
[SourceTitle "playchess.com"]
[Source "ChessBase"]
[SourceQuality "1"]
[TimeControl "40/5400+30:900+30"]

{[%evp 9,87,21,4,-19,2,13,1,11,15,0,0,9,37,10,100,93,126,93,93,81,93,81,75,57,80,38,87,75,100,46,125,114,180,183,208,136,211,187,302,221,216,223,187,129,147,73,55,60,62,63,168,165,117,35,58,78,80,36,86,97,160,22,31,12,40,0,0,0,0,0,0,0,3,0,0,0,397,281,6175,6175]} 1. Nf3 {[%emt 0:00:13]} d5 {[%emt 0:00:03]} 2. g3 {[%emt 0:00:05]} Nc6 {[%emt 0:00:04]} 3. d4 {[%emt 0:00:28]} Bf5 {[%emt 0:00:04]} 4. Nh4 {[%emt 0:01:48]} Be4 {[%emt 0:00:39]} 5. f3 {[%emt 0:00:13]} Bg6 {[%emt 0:00:07]} 6. Bg2 {[%emt 0:05:02]} e6 {[%emt 0:03:38]} 7. Nxg6 {[%emt 0:00:49]} hxg6 {[%emt 0:00:10]} 8. c3 {[%emt 0:00:32] The position is equal.} Qd7 {[%emt 0:11:54]} 9. Be3 {[%emt 0:03:52]} Nf6 {[%emt 0:04:55]} 10. Bf2 {[%emt 0:02:29]} Be7 {[%emt 0:04:56]} 11. Nd2 {[%emt 0:02:41]} (11. h4 $5) 11... Nh5 {[%emt 0:02:57]} (11... e5 $11) 12. e4 {[%emt 0:04:27]} f5 {[%emt 0:02:38]} 13. e5 {[%emt 0:13:48]} g5 {[%emt 0:01:04]} 14. Bf1 {[%emt 0:04:02]} Nd8 {[%emt 0:05:21][%cal Oc7c5]} 15. b4 {[%emt 0:00:42]} a5 {[%emt 0:07:39]} 16. a3 {[%emt 0:00:36]} b6 {[%emt 0:01:22][%cal Oc7c5]} 17. Bd3 {[%emt 0:04:10]} g6 {[%emt 0:09:18]} (17... c5 $14 {might be stronger.}) 18. O-O $16 {[%emt 0:14:40]} Nf7 {[%emt 0:06:47]} 19. b5 {[%emt 0:06:24]} (19. Qb1 $16) 19... O-O {[%emt 0:07:55]} (19... O-O-O $14) 20. c4 {[%emt 0:03:53]} c5 {[%emt 0:03:19]} (20... Rac8 $16 {was called for.} 21. Qb3 Kh8) 21. bxc6 $18 {[%emt 0:00:31]} Qxc6 {[%emt 0:00:29]} 22. cxd5 {[%emt 0:04:21]} exd5 {[%emt 0:01:11]} (22... Qxd5 $16 23. Rb1 Ng7 (23... Nxe5 24. Rb5 $18)) 23. Rc1 {[%emt 0:00:46]} Qe6 {[%emt 0:02:16]} (23... Qb7 $142 24. Nb1 b5) 24. Qb3 {[%emt 0:03:18]} g4 {[%emt 0:02:05]} 25. fxg4 {[%emt 0:09:39]} fxg4 {[%emt 0:00:19]} 26. Ne4 {[%emt 0:02:43]} (26. Rc7 $18 {Strongly threatening Bb5.} Rac8 27. Rb7) 26... Ng7 $16 {[%emt 0:07:34][%cal Oa5a4] [#]} 27. Nf6+ {[%emt 0:00:24]} Bxf6 {[%emt 0:01:25]} 28. exf6 {[%emt 0:00:08]} Nf5 {[%emt 0:01:25]} 29. Rce1 {[%emt 0:04:09]} Qd7 {[%emt 0:08:21]} ({Black should try} 29... Qxf6 $14 30. Qxd5 Rfe8) 30. Bxf5 $18 {[%emt 0:02:34]} (30. Qxb6 $6 Ng5 $14) 30... gxf5 {[%emt 0:00:08]} 31. Be3 {[%emt 0:00:24] White is more active.} (31. Re7 $16 Qc6 32. Rfe1) 31... Rae8 {[%emt 0:02:18] Black is weak on the dark squares} 32. Qxb6 {[%emt 0:01:51]} Nd6 {[%emt 0:00:24]} 33. f7+ {[%emt 0:01:29]} Rxf7 {[%emt 0:00:32]} (33... Kxf7 $14 34. a4 (34. Qxa5 Nc4 $11) 34... Rg8) 34. Bf4 $1 $16 {[%emt 0:00:09]} (34. Qxa5 $6 Nc4 35. Qc3 Rfe7 $11) 34... Ne4 {[%emt 0:01:50] [#]} ({Black should play} 34... Rxe1 35. Rxe1 Re7) 35. Be5 {[%emt 0:00:20]} ({Resist} 35. Qxa5 $6 Qb7 $14) ({Only move:} 35. Rc1 $1 $16 {[%cal Rc1c7] Hoping for Rc7!} Rf6 36. Qxa5) 35... Re6 $1 $11 {[%emt 0:00:33]} 36. Qxa5 {[%emt 0:01:21] Threatening Rb1.} Ng5 {[%emt 0:00:47]} 37. Qc3 {[%emt 0:01:39]} f4 $1 {[%emt 0:01:36]} 38. gxf4 {[%emt 0:00:50]} ({Much weaker is} 38. Rxf4 Rxf4 39. gxf4 Nf3+ 40. Kf2 Nxe1 41. Kxe1 Rc6 $11) 38... Nf3+ {[%emt 0:00:15]} 39. Rxf3 {[%emt 0:00:34]} gxf3 {[%emt 0:00:04]} 40. Qxf3 {[%emt 0:00:08] Qh5 would now be deadly.} Rg6+ {[%emt 0:00:11]} 41. Kh1 {[%emt 0:15:43]} Kh7 {[%emt 0:05:52]} 42. Rf1 {[%emt 0:00:00] And now f5 would win.} Rf5 $2 {[%emt 0:02:15][%mdl 8192]} (42... Qf5 $11 43. h3 (43. Qxd5 Rfg7 $11) 43... Ra7) 43. Rc1 {[%emt 0:00:00] Black must now prevent Rc7.} Kg8 $2 {[%emt 0:05:23] [#]} (43... Rf7 44. Rc7 Qxc7 45. Bxc7 Rxc7 46. Qh5+ (46. Qxd5 $2 Rc1#) 46... Rh6 47. Qxd5 Re7) 44. Qh3 $1 {[%emt 0:00:00] Weighted Error Value: White=0.31/Black=0.45.  Loses game:     	---       	Black=1      Mistake:       	White=5     	Black=10     Inaccurate:     	White=5     	Black=2      OK:         	White=8     	Black=6      Best:        	White=1     	Black=2      Strong:       	White=2     	Black=2} 1-0